bitfinex-derivatives/quotes_ETHF0:USTF0_20260226
["timestamp","ask_amount","ask_price","bid_price","bid_amount"]
[1772068145844,0.00433198,2064.6,2063.6,1.65657803]
[1772068145845,1.81043513,2064.6,2063.6,1.65657803]
[1772068147643,1.81043513,2064.6,2063.5,6.349]
[1772068147850,1.81043513,2064.6,2063.3,1.65657803]
[1772068148349,1.81043513,2064.6,2063.4,1.65657803]
[1772068150643,1.81043513,2064.6,2063.5,1.65657803]
[1772068150842,1.81043513,2064.6,2063.7,1.65657803]
[1772068154051,1.81043513,2064.6,2063.8,1.65657803]
[1772068155547,1.81043513,2064.6,2063.6,6.348]
[1772068155742,2.05258513,2064.6,2063.4,1.65657803]
[1772068158751,2.05258513,2064.6,2063.3,6.348]
[1772068158954,2.04826315,2064.4,2063.0,7.70657789]
[1772068159148,2.04826315,2064.4,2063.0,8.00457803]
[1772068159552,2.04829315,2064.2,2063.0,6.348]
[1772068160253,1.80610315,2064.1,2063.0,6.348]
[1772068160454,1.80610315,2064.1,2063.1,1.65657803]
[1772068160652,1.80610315,2064.1,2063.0,6.348]
[1772068163452,1.80610315,2064.1,2063.0,8.00457803]
[1772068166163,1.62210415,2063.7,2062.7,1.75768595]
[1772068168650,0.24226,2063.6,2062.7,1.75768595]
[1772068168864,1.62210415,2062.9,2062.0,1.75768595]
[1772068169366,6.59233,2063.0,2061.6,1.75768595]
[1772068169367,1.62210415,2062.7,2061.6,1.75768595]
[1772068169764,1.62681413,2062.7,2061.6,1.76284008]
[1772068170061,1.62681413,2062.7,2061.2,8.10768595]
[1772068170062,1.62210415,2062.3,2061.2,8.10768595]
[1772068170253,6.35,2062.3,2061.3,1.75768595]
[1772068170562,1.62210415,2062.2,2061.3,1.75768595]
[1772068171163,1.62210415,2062.2,2061.3,1.7610988]
[1772068173061,8.06291927,2062.3,2061.3,1.7610988]
[1772068173364,6.35570998,2062.7,2061.3,2.0036288]
[1772068173554,1.97240294,2063.3,2062.1,1.64916131]
[1772068173555,1.71291927,2063.3,2062.1,1.64916131]
[1772068173758,1.71291927,2063.3,2062.2,1.89158131]
[1772068174263,1.71291927,2063.3,2062.2,1.64916131]
[1772068174463,1.71291927,2063.2,2062.2,1.64916131]
[1772068174664,1.71756058,2063.2,2062.2,1.64916131]
[1772068175864,1.71291927,2063.0,2062.2,1.64916131]
[1772068177964,1.71291927,2062.9,2062.0,1.64916131]
[1772068178165,1.71291927,2062.8,2062.0,1.64916131]
[1772068178566,1.71291927,2062.5,2061.4,1.64916131]
[1772068178960,1.71291927,2062.4,2061.4,1.64916131]
[1772068179665,1.71291927,2062.3,2061.4,1.64916131]
[1772068180066,1.71291927,2062.5,2061.4,1.64916131]
[1772068181160,1.71291927,2062.2,2061.4,1.64916131]
[1772068181666,1.71291927,2061.9,2061.3,0.00341285]
[1772068181867,1.71291927,2061.9,2060.9,1.64916131]
[1772068182368,1.71291927,2061.8,2060.9,1.64916131]
[1772068182868,1.71291927,2061.8,2060.9,1.65324053]
[1772068183966,1.71291927,2061.7,2060.9,1.65324053]
[1772068184171,1.71291927,2061.5,2060.7,1.64916131]
[1772068184575,1.71291927,2061.3,2060.7,1.64916131]
[1772068184767,1.71291927,2061.5,2060.7,1.64916131]
[1772068184966,1.71856636,2061.7,2060.7,1.64916131]
[1772068185166,1.71856636,2061.7,2060.7,1.65383738]
[1772068185469,0.00564709,2061.7,2060.9,1.64916131]
[1772068185965,8.06691927,2062.2,2061.0,1.64916131]
[1772068186267,1.71291927,2062.4,2061.1,1.64916131]
[1772068186970,1.71771663,2062.4,2061.1,1.64916131]
[1772068188672,1.71291927,2062.1,2061.1,1.64916131]
[1772068188966,1.95535927,2062.1,2060.9,1.64916131]
[1772068189172,1.71291927,2061.9,2060.9,1.64916131]
[1772068189474,1.71291927,2061.8,2060.7,1.65383738]
[1772068189668,1.71291927,2061.6,2060.7,1.65383738]
[1772068190072,1.71291927,2061.4,2060.7,1.65383738]
[1772068190569,1.71762925,2061.3,2060.7,1.65383738]
[1772068190770,1.71291927,2061.6,2060.7,1.65383738]
[1772068190970,1.71291927,2061.8,2060.7,1.65383738]
[1772068191166,1.71291927,2061.6,2060.7,0.00467607]
[1772068191572,1.71291927,2061.2,2060.7,0.00467607]
[1772068191772,1.71291927,2061.4,2060.7,1.65383738]
[1772068192276,1.71291927,2061.6,2060.7,1.65383738]
[1772068194472,8.32838377,2062.0,2060.7,1.65383738]
[1772068194473,1.71291927,2061.4,2060.7,1.65383738]
[1772068194674,1.71291927,2061.4,2060.7,0.00467607]
[1772068195073,3.43054852,2061.2,2060.7,1.65383738]
[1772068195273,1.71291927,2061.2,2060.7,1.65383738]
[1772068195573,1.71762925,2061.1,2060.7,1.65383738]
[1772068195974,1.58012901,2061.4,2060.7,1.65383738]
[1772068196175,1.58012901,2061.6,2060.7,1.65383738]
[1772068196578,3.29775826,2061.5,2060.7,1.65383738]
[1772068196779,1.58012901,2061.5,2060.7,1.65383738]
[1772068197179,1.71762925,2061.4,2060.7,1.65383738]
[1772068197382,3.29775826,2061.4,2060.7,1.65383738]
[1772068197581,1.58012901,2061.1,2060.2,1.63825571]
[1772068197874,1.58012901,2061.3,2060.2,1.63825571]
[1772068198074,3.29775826,2061.3,2060.2,1.63825571]
[1772068198275,1.58012901,2061.2,2060.2,1.63825571]
[1772068198679,1.58012901,2061.1,2060.2,1.64441654]
[1772068199078,1.71762925,2061.0,2060.2,1.64441654]
[1772068199284,3.29775826,2061.0,2060.2,1.64441654]
[1772068199480,1.58012901,2061.0,2060.2,1.64441654]
[1772068199679,1.71762925,2060.9,2060.2,1.64441654]
[1772068199880,1.72270419,2060.9,2060.2,1.64441654]
[1772068200080,0.00507494,2060.9,2060.2,1.64441654]
[1772068200282,1.71762925,2060.8,2060.2,1.64441654]
[1772068201580,0.00507494,2060.9,2060.2,1.64441654]
[1772068201781,1.58012901,2061.2,2060.2,1.64441654]
[1772068202382,1.71762925,2061.1,2060.2,1.64441654]
[1772068202582,1.58012901,2061.2,2060.2,1.64441654]
[1772068202783,1.58537372,2061.2,2060.2,1.64441654]
[1772068202982,3.29775826,2061.1,2060.2,1.64441654]
[1772068203182,1.58012901,2061.1,2060.2,1.64441654]
[1772068203382,1.71762925,2061.0,2060.2,1.64441654]
[1772068204084,1.71762925,2060.9,2060.2,1.64441654]
[1772068204286,0.00524471,2061.2,2060.2,1.64441654]
[1772068204486,1.58537372,2061.2,2060.2,1.64441654]
[1772068204886,1.71762925,2061.1,2060.2,1.64441654]
[1772068205777,1.58537372,2061.2,2060.2,1.64441654]
[1772068206181,1.58012901,2061.1,2060.2,0.00616083]
[1772068206382,1.58012901,2060.6,2060.2,1.64441654]
[1772068206582,1.58012901,2060.6,2060.2,1.52388806]
[1772068206781,1.58012901,2060.6,2059.8,1.63825571]
[1772068206984,1.97438377,2060.9,2059.8,1.63825571]
[1772068206985,1.58012901,2060.2,2059.8,1.63825571]
[1772068207188,1.58012901,2060.8,2059.8,1.63825571]
[1772068207389,3.29775826,2060.3,2059.8,1.63825571]
[1772068207590,1.58012901,2060.2,2059.8,1.63825571]
[1772068207792,1.58012901,2060.2,2059.8,1.6427237]
[1772068207992,1.71762925,2059.9,2059.8,1.6427237]
[1772068208189,1.58012901,2060.7,2059.6,1.63825571]
[1772068208389,1.58012901,2060.7,2060.0,1.63825571]
[1772068208790,1.58012901,2060.7,2059.7,1.63825571]
[1772068209187,1.58012901,2060.7,2059.7,1.64200258]
[1772068209389,1.58012901,2060.9,2060.0,1.63825571]
[1772068209786,1.58012901,2061.1,2060.1,1.63825571]
[1772068209990,0.00524471,2061.2,2060.3,1.63825571]
[1772068211094,1.58537372,2061.2,2060.5,1.63825571]
[1772068214193,0.00524471,2061.2,2060.5,1.63825571]
[1772068215498,1.58537372,2061.2,2060.5,1.63825571]
[1772068215696,1.58537372,2061.2,2060.2,1.63825571]
[1772068218508,1.58537372,2061.2,2060.3,1.63825571]
[1772068220107,1.58012901,2061.6,2060.9,1.63825571]
[1772068220908,1.58012901,2061.8,2060.9,1.63825571]
[1772068221104,1.58371949,2061.8,2060.9,1.63825571]
[1772068221310,1.58371949,2061.8,2060.8,1.63825571]
[1772068222403,1.58371949,2061.8,2060.9,1.63825571]
[1772068222808,1.58012901,2061.5,2060.3,1.63825571]
[1772068223813,1.58012901,2061.2,2059.9,1.63825571]
[1772068224013,1.58012901,2061.0,2059.9,1.63825571]
[1772068226313,1.58012901,2061.0,2060.0,1.67635996]
[1772068227316,1.59856509,2061.4,2060.2,1.67635996]
[1772068227517,1.59856509,2061.2,2060.2,1.67635996]
[1772068228013,6.354,2061.6,2060.4,1.67635996]
[1772068228014,1.59856509,2061.4,2060.4,1.67635996]
[1772068228211,1.59856509,2061.4,2060.5,1.67635996]
[1772068230711,1.59856509,2061.6,2060.5,1.67635996]
[1772068230909,1.59856509,2061.6,2060.6,1.67635996]
[1772068232614,1.70463262,2061.8,2060.8,1.6821718]
[1772068241929,1.70463262,2061.8,2061.0,1.62976994]
[1772068242129,1.70463262,2061.8,2061.1,1.59894657]
[1772068243330,1.70463262,2061.8,2061.0,2.99078203]
[1772068243826,1.70463262,2061.8,2061.0,4.57897451]
[1772068245331,1.70463262,2061.8,2061.1,1.57333996]
[1772068245540,1.70463262,2061.8,2060.7,1.57333996]
[1772068245727,1.70463262,2061.8,2060.5,1.57333996]
[1772068245923,1.70104214,2061.6,2060.5,1.57333996]
[1772068247734,0.00359048,2061.8,2060.4,6.354]
[1772068247735,1.70104214,2061.4,2060.4,6.354]
[1772068248331,1.70104214,2061.4,2060.4,7.91857064]
[1772068249036,1.70104214,2061.4,2060.4,6.354]
[1772068249230,1.70104214,2061.2,2060.0,1.55955884]
[1772068250435,1.70104214,2061.2,2060.2,1.55496174]
[1772068259541,1.70104214,2061.2,2060.3,1.45965519]
[1772068263250,1.70104214,2061.2,2060.2,2.99078203]
[1772068263436,1.56719714,2061.0,2059.8,1.41988335]
[1772068264140,1.56719714,2061.0,2059.7,0.24646687]
[1772068264141,1.56719714,2061.0,2060.0,1.52783227]
[1772068264947,1.56719714,2061.0,2060.2,1.52783227]
[1772068265246,1.56719714,2061.0,2060.3,1.52783227]
[1772068265445,4.00751866,2061.7,2060.3,1.52783227]
[1772068265758,1.56719714,2061.6,2060.8,1.52783227]
[1772068265948,1.56719714,2061.6,2060.9,1.52783227]
[1772068266943,1.56719714,2061.3,2060.5,1.52783227]
[1772068267350,1.56719714,2061.7,2060.5,1.52783227]
[1772068270145,1.56719714,2061.5,2060.5,1.52783227]
[1772068270648,1.56719714,2061.3,2060.5,1.52783227]
[1772068271249,1.56719714,2061.4,2060.5,1.52783227]
[1772068272549,1.56719714,2060.8,2059.7,0.00374687]
[1772068272850,1.56719714,2060.6,2059.7,0.00374687]
[1772068273146,1.56719714,2060.6,2059.7,1.53157914]
[1772068273352,1.80969714,2060.6,2059.7,1.53157914]
[1772068275156,1.56719714,2060.6,2059.7,1.53157914]
[1772068275856,1.56719714,2061.1,2059.7,1.53157914]
[1772068276157,4.00751866,2061.3,2059.7,1.53157914]
[1772068276158,1.56719714,2060.9,2059.7,1.53157914]
[1772068277459,1.56719714,2060.9,2059.9,1.52783227]
[1772068277759,1.56719714,2061.3,2060.0,7.10146001]
[1772068278062,1.56719714,2061.3,2060.1,1.52783227]
[1772068278858,1.56719714,2061.1,2060.1,1.52783227]
[1772068279159,1.56719714,2061.1,2059.9,2.33983227]
[1772068279455,1.56719714,2060.8,2059.9,2.33983227]
[1772068279656,1.56719714,2060.8,2059.9,1.52783227]
[1772068279857,1.56719714,2060.6,2059.9,1.52783227]
[1772068281460,1.56719714,2061.0,2059.9,1.52783227]
[1772068281662,1.56719714,2060.8,2059.9,1.52783227]
[1772068282060,1.80969714,2060.7,2059.9,1.52783227]
[1772068282356,1.56719714,2060.7,2059.9,1.52783227]
[1772068282556,1.80969714,2060.7,2059.9,1.52783227]
[1772068282758,1.56719714,2060.7,2059.7,1.53157914]
[1772068283158,1.56719714,2060.4,2059.7,1.53157914]
[1772068283662,0.2425,2060.3,2059.7,1.53157914]
[1772068283966,0.24865738,2060.3,2059.7,1.53157914]
[1772068284159,1.81585452,2060.3,2059.7,1.53157914]
[1772068284759,1.56719714,2060.1,2059.7,0.00374687]
[1772068284966,1.57335452,2060.3,2059.7,1.53157914]
[1772068285260,0.2425,2060.1,2059.7,1.53157914]
[1772068285761,0.2425,2060.0,2059.7,1.53157914]
[1772068285961,1.57335452,2060.3,2059.7,1.53157914]
[1772068286358,0.00615738,2060.3,2059.7,1.53157914]
[1772068286767,0.24865738,2060.3,2059.7,1.53157914]
[1772068289159,0.00615738,2060.3,2059.7,1.53157914]
[1772068289761,1.57403846,2060.6,2059.9,1.6497093]
[1772068290466,0.2425,2060.5,2059.9,1.6497093]
[1772068290768,0.24858641,2060.5,2059.9,1.6497093]
[1772068291360,1.57403846,2060.2,2059.8,2.4617093]
[1772068291560,1.57403846,2060.4,2059.9,1.6497093]
[1772068291761,0.00608641,2060.5,2059.9,1.6497093]
[1772068292071,1.55151167,2060.8,2059.9,1.6497093]
[1772068292266,1.79410167,2060.8,2059.7,1.66411862]
[1772068292473,1.55151167,2060.3,2059.7,0.00374687]
[1772068292970,1.55639245,2060.3,2059.7,0.00374687]
[1772068293168,0.00488078,2060.3,2059.7,1.66411862]
[1772068293368,1.55151167,2060.7,2059.7,1.66411862]
[1772068294368,1.55622755,2060.7,2059.7,1.66411862]
[1772068302871,1.55151167,2060.5,2059.7,1.66411862]
[1772068317300,0.00471588,2060.7,2059.8,1.57095377]
[1772068318891,1.5010409,2060.7,2059.8,1.57095377]
[1772068324198,1.49632502,2060.5,2059.8,1.57095377]
[1772068325100,1.5010409,2060.7,2059.8,1.81364377]
[1772068325301,0.00471588,2060.7,2060.1,1.57095377]
[1772068325597,1.49632502,2061.2,2060.1,1.57095377]
[1772068325899,1.49632502,2061.1,2060.1,1.57095377]
[1772068326099,1.49632502,2061.3,2060.4,1.57095377]
[1772068326295,1.49632502,2061.5,2060.4,1.57095377]
[1772068326696,1.50142358,2061.5,2060.4,1.57095377]
[1772068327299,0.00509856,2061.5,2060.7,1.57095377]
[1772068327500,1.49632502,2061.9,2061.0,1.57095377]
[1772068327705,19.76538446,2062.3,2061.0,1.57095377]
[1772068327706,1.49632502,2062.2,2061.0,1.57095377]
[1772068328608,1.50220157,2062.2,2061.0,1.57095377]
[1772068330008,1.49632502,2062.1,2061.0,1.57095377]
[1772068330611,1.49632502,2061.8,2060.8,7.92595377]
[1772068331410,1.49632502,2061.8,2060.9,1.57095377]
[1772068334411,0.00587655,2062.2,2060.9,1.57095377]
[1772068334412,1.49632502,2062.1,2060.9,1.57095377]
[1772068335207,1.97851069,2061.9,2060.9,0.812]
[1772068335414,1.49632502,2061.8,2060.9,2.38295377]
[1772068335614,1.49632502,2061.8,2060.8,6.355]
[1772068336319,1.49632502,2061.8,2060.9,1.57095377]
[1772068336611,1.49632502,2061.8,2060.7,1.57095377]
[1772068336816,1.49632502,2061.5,2060.4,1.57095377]
[1772068337210,1.49632502,2061.5,2060.5,1.57095377]
[1772068338916,1.73885502,2061.4,2060.3,1.57095377]
[1772068341421,1.49632502,2061.4,2060.3,1.57095377]
[1772068342419,1.49632502,2061.6,2060.5,1.57095377]
[1772068352223,1.41995406,2061.4,2060.5,1.57095377]
[1772068353229,1.41995406,2061.2,2060.3,1.34656924]
[1772068354024,1.41995406,2061.6,2060.5,1.34656924]
[1772068354220,1.41995406,2062.1,2061.0,1.34656924]
[1772068354428,1.41995406,2061.9,2061.0,1.34656924]
[1772068354824,1.41995406,2061.9,2061.1,1.34656924]
[1772068355032,1.41995406,2062.1,2061.1,1.34656924]
[1772068355426,1.42583061,2062.2,2061.1,1.34656924]
[1772068360039,1.41995406,2062.0,2061.1,1.34656924]
[1772068360640,1.41995406,2062.7,2061.4,0.24252]
[1772068360842,1.41995406,2062.9,2061.6,1.58905924]
[1772068361037,1.41995406,2063.3,2062.0,1.34656924]
[1772068361247,1.41995406,2063.1,2062.0,1.34656924]
[1772068361743,1.4235013,2063.1,2062.0,1.35278131]
[1772068363446,1.4235013,2063.1,2062.0,0.00621207]
[1772068363743,1.41995406,2062.9,2062.0,0.00621207]
[1772068364048,1.41995406,2062.9,2060.9,1.34656924]
[1772068364049,1.41995406,2062.5,2060.9,1.34656924]
[1772068364444,1.41995406,2062.3,2060.9,1.34656924]
[1772068364645,1.41995406,2062.2,2060.9,1.34656924]
[1772068364843,1.41995406,2062.2,2060.9,1.35199532]
[1772068367345,1.41995406,2062.0,2060.9,1.35199532]
[1772068370156,1.66241406,2062.0,2060.9,1.35199532]
[1772068373562,1.41995406,2062.2,2060.9,1.35199532]
[1772068374647,1.41995406,2062.0,2060.9,1.35199532]
[1772068377358,1.28258591,2061.8,2060.9,0.00542608]
[1772068377561,1.28258591,2061.7,2060.9,0.00542608]
[1772068378161,1.28258591,2061.7,2060.9,1.28903795]
[1772068378362,1.28258591,2061.7,2060.9,0.00542608]
[1772068378653,1.52509591,2061.5,2060.5,1.28361187]
[1772068379458,1.52875365,2061.5,2060.5,1.28885878]
[1772068381562,1.28258591,2061.3,2060.1,1.28361187]
[1772068381762,1.28258591,2061.1,2060.1,1.28361187]
[1772068382758,1.28258591,2061.1,2060.1,1.28900622]
[1772068390571,1.28258591,2061.1,2060.1,0.00539435]
[1772068390763,1.52518591,2060.7,2059.6,1.28361187]
[1772068390966,1.28258591,2060.5,2059.6,1.28361187]
[1772068391667,1.28258591,2060.5,2059.6,1.28889968]
[1772068392768,1.28258591,2060.3,2059.6,1.28889968]
[1772068392968,1.28258591,2060.3,2059.6,0.00528781]
[1772068395671,1.28258591,2060.3,2059.6,1.28889968]
[1772068395871,1.28258591,2060.1,2059.2,1.28361187]
[1772068396171,1.28258591,2060.0,2059.2,1.28361187]
[1772068396963,0.24266,2060.2,2059.2,1.28361187]
[1772068396964,1.28258591,2060.4,2059.3,0.24276]
[1772068397166,40.8,2060.8,2059.3,0.24276]
[1772068397167,1.28258591,2060.6,2059.4,1.28361187]
[1772068397372,1.28258591,2060.6,2059.6,1.28361187]
[1772068398069,0.00382587,2060.6,2059.6,1.28361187]
[1772068398567,0.00382587,2060.6,2059.6,7.63961187]
[1772068398773,0.00382587,2060.6,2059.8,1.28361187]
[1772068400873,1.28258591,2061.1,2060.0,1.28361187]
[1772068401177,1.28258591,2061.5,2060.2,1.28361187]
[1772068401773,0.24253,2061.3,2060.2,1.28361187]
[1772068401970,1.28258591,2061.2,2060.2,1.28361187]
[1772068405579,1.28258591,2061.0,2060.2,1.28361187]
[1772068407378,1.18455184,2061.2,2060.2,1.28361187]
[1772068407579,0.00585643,2061.3,2060.2,1.28361187]
[1772068407774,1.19040827,2061.3,2060.2,1.28361187]
[1772068409680,1.19040827,2061.3,2059.8,1.23800641]
[1772068409878,5.72228073,2061.2,2059.8,1.23800641]
[1772068410083,1.18455184,2061.1,2059.8,1.23800641]
[1772068411782,1.18455184,2061.1,2059.9,0.812]
[1772068411980,1.18455184,2061.1,2060.0,1.24215422]
[1772068417787,1.2862992,2061.3,2060.2,1.24215422]
[1772068419489,0.00585643,2061.3,2060.4,1.24215422]
[1772068419690,1.28044277,2061.7,2060.6,1.24215422]
[1772068419895,1.28044277,2061.7,2060.8,1.24215422]
[1772068420289,1.28044277,2062.1,2061.0,1.24215422]
[1772068420486,1.28044277,2062.3,2061.2,1.24215422]
[1772068420793,1.28390606,2062.3,2061.2,1.24823836]
[1772068421193,1.28044277,2062.1,2061.2,1.24823836]
[1772068421389,1.28044277,2062.1,2061.2,0.00608414]
[1772068421390,1.28044277,2062.0,2061.2,0.00608414]
[1772068421596,1.28044277,2062.0,2061.2,1.24823836]
[1772068422494,0.00346329,2062.3,2061.2,1.24823836]
[1772068422696,1.28044277,2062.2,2061.2,1.24823836]
[1772068426403,1.28044277,2062.0,2061.2,1.24823836]
[1772068426594,1.28044277,2062.0,2061.2,0.00608414]
[1772068428900,1.28044277,2061.7,2060.9,2.05415422]
[1772068429103,1.28044277,2061.7,2060.7,1.24215422]
[1772068430002,1.28044277,2061.7,2060.7,1.24604239]
[1772068436609,1.15297319,2062.1,2060.9,1.1486156]
[1772068438111,1.15297319,2062.1,2061.0,0.812]
[1772068438405,1.15297319,2062.1,2061.1,1.1486156]
[1772068444216,5.67555048,2062.0,2061.1,1.1486156]
[1772068444511,1.15297319,2061.9,2061.1,1.1486156]
[1772068449123,5.69007731,2061.8,2061.1,1.1486156]
[1772068449321,1.15297319,2061.7,2061.1,1.1486156]
[1772068452221,1.15297319,2061.5,2060.7,1.15250377]
[1772068453023,1.15297319,2061.4,2060.7,0.00388817]
[1772068454021,1.15297319,2061.2,2060.7,0.00388817]
[1772068454222,1.15297319,2061.2,2060.4,1.1486156]
[1772068455221,1.15297319,2061.2,2060.4,1.15422863]
[1772068457927,1.15297319,2061.5,2060.4,1.15422863]
[1772068458126,1.15297319,2061.5,2060.4,1.39685863]
[1772068459726,1.15297319,2061.5,2060.6,1.1486156]
[1772068463330,1.15297319,2061.4,2060.5,1.9606156]
[1772068463731,1.15297319,2061.4,2060.6,1.1486156]
[1772068464727,1.15297319,2061.7,2060.6,1.1486156]
[1772068465032,1.15297319,2061.5,2060.7,1.1486156]
[1772068465729,1.11669408,2061.9,2060.7,1.1486156]
[1772068465932,1.11669408,2061.9,2060.7,1.3912156]
[1772068466333,1.11669408,2061.9,2060.9,1.09933024]
[1772068467839,1.12015737,2062.3,2061.3,1.09933024]
[1772068471136,1.12015737,2062.3,2061.1,1.09933024]
[1772068471837,1.12015737,2062.3,2061.3,1.09933024]
[1772068473437,1.12015737,2062.3,2061.5,1.1721287]
[1772068476838,0.00346329,2062.3,2061.6,1.1721287]
[1772068477039,1.1300388,2062.6,2061.6,1.1721287]
[1772068477440,1.1300388,2063.0,2061.8,1.1721287]
[1772068478040,1.1300388,2062.8,2061.8,1.1721287]
[1772068478838,0.00400311,2063.0,2061.9,1.4145887]
[1772068479041,0.00400311,2063.0,2062.0,1.1721287]
[1772068479239,0.00400311,2063.0,2062.2,1.1721287]
[1772068480851,1.13404191,2063.0,2062.2,1.1721287]
[1772068481241,1.13404191,2063.0,2062.2,1.07532959]
[1772068481443,1.13404191,2063.0,2062.0,1.1721287]
[1772068484143,0.00400311,2063.0,2062.2,1.1721287]
[1772068484754,1.13404191,2063.0,2062.2,1.1721287]
[1772068490054,1.13404191,2063.0,2062.0,1.1721287]
[1772068491755,1.13404191,2063.0,2062.0,1.9841287]
[1772068492050,1.13404191,2063.0,2062.1,1.1721287]
[1772068492255,1.13404191,2063.0,2061.9,1.17674201]
[1772068500660,1.37637191,2063.0,2061.9,0.00461331]
[1772068500861,1.16385301,2062.7,2061.9,1.14416714]
[1772068501061,1.16785612,2063.0,2061.9,1.38662714]
[1772068502063,0.00400311,2063.0,2062.1,1.13955383]
[1772068502368,0.00400311,2063.0,2062.2,1.13955383]
[1772068503963,1.16385301,2063.3,2062.3,0.24241]
[1772068504169,1.16385301,2063.5,2062.4,1.13955383]
[1772068504879,1.16385301,2063.3,2062.2,1.13955383]
[1772068505080,1.16799134,2063.3,2062.2,1.13955383]
[1772068507475,1.40618301,2063.1,2061.9,0.00461331]
[1772068507673,1.16385301,2062.9,2061.9,0.00461331]
[1772068507874,1.16385301,2062.7,2061.9,0.00461331]
[1772068508374,1.16385301,2062.7,2061.9,1.14416714]
[1772068511277,1.16385301,2062.7,2061.9,0.00461331]
[1772068511575,1.16385301,2062.5,2061.9,0.00461331]
[1772068511876,1.16385301,2062.5,2061.9,1.14416714]
[1772068512476,1.16385301,2062.9,2061.9,1.14416714]
[1772068512671,1.16385301,2062.7,2061.9,1.14416714]
[1772068513673,1.16385301,2063.0,2062.0,1.13955383]
[1772068514382,1.16385301,2062.8,2062.0,1.13955383]
[1772068515075,1.16385301,2062.8,2061.9,0.00461331]
[1772068515278,1.16385301,2062.8,2061.9,1.14416714]
[1772068518780,1.16385301,2062.6,2061.9,0.00461331]
[1772068519182,1.16385301,2062.6,2061.9,1.14416714]
[1772068519678,1.16385301,2062.6,2061.5,6.352]
[1772068519883,1.16385301,2062.6,2061.5,1.13955383]
[1772068520784,1.16385301,2062.6,2061.5,1.14526657]
[1772068521886,5.9391104,2063.0,2061.9,1.13955383]
[1772068521887,1.16385301,2063.0,2061.9,1.13955383]
[1772068522086,1.16385301,2063.0,2061.8,5.96482]
[1772068522087,1.16385301,2063.0,2062.1,1.13955383]
[1772068525092,1.16385301,2063.0,2061.9,1.13955383]
[1772068525486,1.40620301,2062.8,2061.5,1.14526657]
[1772068525687,1.16385301,2062.6,2061.5,1.14526657]
[1772068530493,1.12934477,2062.4,2061.5,0.00571274]
[1772068530994,1.12934477,2062.4,2061.5,1.18970304]
[1772068532486,1.12708391,2062.6,2061.7,1.13697791]
[1772068534495,1.12708391,2062.8,2061.8,0.812]
[1772068534693,1.12708391,2062.8,2061.9,1.13697791]
[1772068537801,1.12708391,2062.8,2061.9,1.94897791]
[1772068538202,1.12708391,2062.8,2062.0,1.13697791]
[1772068538899,1.12708391,2062.8,2061.9,0.812]
[1772068539494,1.12708391,2062.8,2062.0,1.13697791]
[1772068540004,1.12708391,2062.8,2061.9,0.812]
[1772068540601,1.12708391,2062.8,2061.6,7.165]
[1772068540804,1.12708391,2062.8,2061.7,1.13697791]
[1772068541107,1.12708391,2062.6,2061.7,1.13697791]
[1772068546303,1.12708391,2062.9,2061.7,1.03499691]
[1772068546509,1.12708391,2062.7,2061.8,1.13697791]
[1772068547711,1.12708391,2062.7,2061.7,1.13697791]
[1772068548710,1.12708391,2062.5,2061.7,1.13697791]
[1772068551921,1.12708391,2062.7,2061.7,1.13697791]
[1772068552318,1.12708391,2062.7,2061.8,1.13697791]
[1772068554824,1.12708391,2062.5,2061.5,0.00571274]
[1772068555123,1.12708391,2062.5,2061.5,1.14269065]
[1772068555722,1.12708391,2062.5,2061.5,0.00571274]
[1772068555924,1.15195799,2062.3,2061.5,1.11107136]
[1772068564721,1.15195799,2062.3,2061.5,0.00571274]
[1772068564923,1.15195799,2062.1,2061.1,1.10535862]
[1772068565220,1.15195799,2061.9,2060.9,1.10535862]
[1772068565928,1.15195799,2061.9,2060.9,1.11002386]
[1772068569226,1.15195799,2062.1,2061.2,1.10535862]
[1772068575736,1.15195799,2062.1,2061.3,1.10535862]
[1772068577630,1.15195799,2062.1,2061.2,0.812]
[1772068577832,1.15195799,2061.9,2060.9,0.00466524]
[1772068578229,1.15195799,2061.9,2060.9,1.11002386]
[1772068578429,9.7244705,2061.9,2060.9,0.00466524]
[1772068578635,1.39443799,2061.7,2060.5,1.10535862]
[1772068579540,1.39957233,2061.7,2060.5,1.11115904]
[1772068580942,1.15195799,2061.5,2060.5,1.11115904]
[1772068581838,0.24252,2061.4,2060.5,0.00580042]
[1772068582039,1.39458799,2060.5,2059.1,1.10535862]
[1772068582244,1.15195799,2060.0,2059.1,1.10535862]
[1772068582444,1.15195799,2060.0,2058.9,1.10535862]
[1772068583042,1.1577724,2060.0,2058.9,1.11042587]
[1772068583939,1.1577724,2060.0,2059.0,1.10535862]
[1772068585341,1.1577724,2060.0,2058.9,1.11042587]
[1772068585539,3.1270105,2059.8,2058.6,1.10535862]
[1772068585745,1.15195799,2059.4,2057.9,1.10535862]
[1772068585945,1.15195799,2059.4,2058.1,1.16836426]
[1772068586539,1.15195799,2059.4,2058.1,1.17239715]
[1772068587544,1.15688955,2059.8,2058.6,1.16836426]
[1772068588143,1.15688955,2059.6,2058.6,1.16836426]
[1772068590148,0.24269,2059.9,2058.7,5.41496027]
[1772068590149,1.15688955,2059.9,2058.7,5.41496027]
[1772068590347,1.15688955,2059.9,2058.8,1.16836426]
[1772068590744,1.15688955,2059.9,2058.9,1.16836426]
[1772068591449,0.00581441,2060.0,2058.9,1.16836426]
[1772068591650,1.16270396,2060.0,2058.9,1.16836426]
[1772068591844,0.00581441,2060.0,2059.2,1.14631209]
[1772068592655,3.51871608,2060.9,2059.5,1.14631209]
[1772068592656,1.14673895,2060.6,2059.5,1.14631209]
[1772068593758,1.15013994,2060.6,2059.5,1.14631209]
[1772068597056,0.00340099,2060.6,2059.7,1.14631209]
[1772068597249,0.00340099,2060.6,2059.7,1.14998559]
[1772068597452,1.14673895,2060.9,2059.9,3.1213646]
[1772068597653,1.14673895,2061.1,2060.0,1.14631209]
[1772068598461,1.15022674,2061.1,2060.0,1.14631209]
[1772068598862,1.14673895,2061.9,2060.5,1.14631209]
[1772068599762,3.12179146,2061.9,2060.5,1.14631209]
[1772068599959,1.14673895,2061.8,2060.5,1.14631209]
[1772068601457,1.14673895,2061.5,2060.4,6.356]
[1772068601761,1.14673895,2061.3,2060.5,1.14631209]
[1772068601963,1.14673895,2061.6,2060.5,1.14631209]
[1772068603464,1.14673895,2061.6,2060.4,6.356]
[1772068603663,1.14673895,2061.6,2060.4,7.50231209]
[1772068604562,1.14673895,2061.6,2059.7,0.0036735]
[1772068604766,1.14673895,2061.2,2059.8,1.14631209]
[1772068604966,1.14673895,2061.0,2059.8,1.14631209]
[1772068605561,1.14673895,2060.8,2059.8,1.14631209]
[1772068606057,1.14673895,2060.6,2059.8,1.14631209]
[1772068615273,1.14673895,2060.4,2059.7,0.0036735]
[1772068615467,1.15048275,2060.4,2059.4,1.14631209]
[1772068616469,1.15048275,2060.4,2059.4,1.1520368]
[1772068618779,6.356,2060.3,2059.4,1.1520368]
[1772068618973,1.11547736,2060.2,2059.4,1.1520368]
[1772068620377,0.0037438,2060.4,2059.4,7.1238268]
[1772068620584,1.11547736,2060.8,2059.8,1.20397787]
[1772068621774,1.11893864,2060.8,2059.8,1.20397787]
[1772068622180,0.00346128,2060.8,2060.0,1.20397787]